lending/lending_fUSD_20250501
["ID","MTS","AMOUNT","RATE_DAILY","PERIOD"]
[359567991,1746126660906,-783.26,0.0003589,11]
[359567992,1746126660915,-1203.87,0.0003589,11]
[359567993,1746126660924,-450.0,0.0003589,3]
[359567994,1746126660934,-1364.65,0.0003589,11]
[359567995,1746126660944,-1051.41,0.0003589,11]
[359567996,1746126660953,-450.0,0.0003589,11]
[359567997,1746126660963,-502.4,0.0003589,11]
[359567998,1746126660973,-450.0,0.0003589,11]
[359567999,1746126660982,-1326.41,0.0003589,11]
[359568000,1746126660992,-597.05,0.0003589,11]
[359568001,1746126661001,-968.63,0.0003589,11]
[359568002,1746126661015,-3282.93,0.0003589,11]
[359568003,1746126661025,-802.7,0.0003589,11]
[359568004,1746126661036,-450.0,0.0003589,11]
[359568005,1746126661046,-1577.11,0.0003589,11]
[359568006,1746126661057,-513.87,0.0003589,11]
[359568007,1746126661066,-1060.94,0.0003589,11]
[359568008,1746126661077,-450.0,0.0003589,11]
[359568009,1746126661089,-450.0,0.0003589,2]
[359568010,1746126661102,-506.77,0.0003589,11]
[359568011,1746126661112,-936.9,0.0003589,11]
[359568012,1746126661121,-28403.83,0.0003589,11]
[359568013,1746126661131,-1125.28,0.0003589,11]
[359568014,1746126661141,-3054.88,0.0003589,11]
[359568015,1746126661150,-647.88,0.0003589,11]
[359568016,1746126661160,-1158.58,0.0003589,11]
[359568017,1746126661169,-450.0,0.0003589,11]
[359568018,1746126661179,-450.0,0.0003589,11]
[359568019,1746126661191,-1869.27,0.0003589,8]
[359568020,1746126661202,-450.0,0.0003589,11]
[359568021,1746126661211,-550.33,0.0003589,11]
[359568022,1746126661220,-450.0,0.0003589,11]
[359568023,1746126661231,-648.41,0.0003589,11]
[359568024,1746126661241,-160.0,0.000359,49]
[359568025,1746126661251,-1237.61,0.00035962,5]
[359568026,1746126661260,-14748.96216949,0.00036,2]
[359568027,1746126661270,-456.28092318,0.00036064,2]
[359568028,1746126661282,-192.35631101,0.00036064,2]
[359568029,1746126661292,-3296.4131885,0.00036064,2]
[359568030,1746126661303,-649.58376804,0.00036064,2]
[359568031,1746126661313,-3017.02308545,0.00036064,2]
[359568032,1746126661322,-38963.28942309,0.0003608,2]
[359568033,1746126661332,-14748.96216949,0.00036112,2]
[359568034,1746126661341,-802.1029494,0.00036121,2]
[359568035,1746126661351,-262.23970625,0.00036154,2]
[359568036,1746126661360,-546.00792925,0.00036163,11]
[359568037,1746126661370,-556.13950949,0.00036163,11]
[359568038,1746126661380,-450.0,0.00036163,11]
[359568039,1746126661390,-450.0,0.00036163,11]
[359568040,1746126661400,-450.0,0.00036163,11]
[359568041,1746126661410,-820.76,0.00036163,11]
[359568042,1746126661419,-820.76,0.00036163,11]
[359568043,1746126661429,-820.76,0.00036163,11]
[359568044,1746126661439,-450.0,0.00036164,11]
[359568045,1746126661449,-295.55896236,0.00036164,11]
[359568046,1746126661459,-450.0,0.00036164,11]
[359568047,1746126661468,-450.0,0.00036164,11]
[359568048,1746126661478,-450.0,0.00036164,11]
[359568049,1746126661487,-450.0,0.00036164,11]
[359568050,1746126661497,-438.84071461,0.00036164,11]
[359568051,1746126661506,-547.90384288,0.00036164,11]
[359568052,1746126661515,-450.0,0.00036164,11]
[359568053,1746126661525,-450.0,0.00036164,11]
[359568054,1746126661534,-450.0,0.00036164,11]
[359568055,1746126661544,-450.0,0.00036164,11]
[359568056,1746126661554,-564.83903106,0.00036164,11]
[359568057,1746126661563,-406.07050241,0.00036164,11]
[359568058,1746126661572,-303.56248048,0.00036164,11]
[359568059,1746126661582,-450.0,0.00036164,11]
[359568060,1746126661591,-1675.08,0.00036164,11]
[359568061,1746126661601,-450.0,0.00036164,11]
[359568062,1746126661611,-450.0,0.00036164,11]
[359568063,1746126661621,-450.0,0.00036164,11]
[359568064,1746126661631,-1186.47,0.00036164,11]
[359568065,1746126661641,-450.0,0.00036164,11]
[359568066,1746126661652,-569.48836407,0.00036164,11]
[359568067,1746126661662,-533.03,0.00036164,11]
[359568068,1746126661672,-450.0,0.00036164,11]
[359568069,1746126661681,-450.0,0.00036164,11]
[359568070,1746126661691,-450.0,0.00036164,11]
[359568071,1746126661700,-450.0,0.00036164,11]
[359568072,1746126661710,-450.0,0.00036164,11]
[359568073,1746126661719,-635.69,0.00036164,11]
[359568074,1746126661729,-474.46,0.00036164,11]
[359568075,1746126661738,-450.0,0.00036164,11]
[359568076,1746126661748,-450.0,0.00036164,11]
[359568077,1746126661757,-709.86,0.00036164,11]
[359568078,1746126661766,-450.0,0.00036164,11]
[359568079,1746126661776,-450.0,0.00036164,11]
[359568080,1746126661785,-1045.87,0.00036164,11]
[359568081,1746126661794,-450.0,0.00036164,11]
[359568082,1746126661804,-450.0,0.00036164,11]
[359568083,1746126661813,-473.65,0.00036164,11]
[359568084,1746126661823,-450.0,0.00036164,11]
[359568085,1746126661833,-450.0,0.00036164,11]
[359568086,1746126661842,-450.0,0.00036164,11]
[359568087,1746126661852,-748.78,0.00036164,11]
[359568088,1746126661862,-595.71,0.00036164,11]
[359568089,1746126661874,-450.0,0.00036164,11]
[359568090,1746126662061,-450.0,0.00036164,11]
[359568091,1746126662072,-450.0,0.00036164,11]
[359568092,1746126662082,-1253.573309,0.00036164,11]
[359568093,1746126662094,-562.26,0.00036164,11]
[359568094,1746126662104,-641.31,0.00036164,11]
[359568095,1746126662114,-450.0,0.00036164,11]
[359568096,1746126662124,-517.88,0.00036164,11]
[359568097,1746126662134,-1190.07,0.00036164,11]
[359568098,1746126662143,-450.0,0.00036164,11]
[359568099,1746126662153,-450.0,0.00036164,11]
[359568100,1746126662163,-682.15,0.00036164,11]
[359568101,1746126662172,-533.01,0.00036164,11]
[359568102,1746126662183,-2348.31,0.00036164,11]
[359568103,1746126662193,-201.24735418,0.00036164,11]
[359568104,1746126662202,-150.0,0.00036164,11]
[359568105,1746126662212,-450.0,0.00036164,11]
[359568106,1746126662222,-450.0,0.00036164,11]
[359568107,1746126662232,-450.0,0.00036164,11]
[359568108,1746126662242,-450.0,0.00036164,11]
[359568109,1746126662252,-450.0,0.00036164,11]
[359568110,1746126662262,-450.0,0.00036164,11]
[359568111,1746126662271,-586.53,0.00036164,11]
[359568112,1746126662281,-450.0,0.00036164,11]
[359568113,1746126662291,-151.0,0.00036164,7]
[359568114,1746126662302,-1298.14,0.00036164,11]
[359568115,1746126662311,-450.0,0.00036164,11]
[359568116,1746126662320,-450.0,0.00036164,11]
[359568117,1746126662330,-450.0,0.00036164,11]
[359568118,1746126662340,-450.0,0.00036164,11]
[359568119,1746126662350,-450.0,0.00036164,11]
[359568120,1746126662359,-450.0,0.00036164,11]
[359568121,1746126662369,-462.37,0.00036164,11]
[359568122,1746126662378,-450.0,0.00036164,11]
[359568123,1746126662387,-450.0,0.00036164,11]
[359568124,1746126662396,-544.15,0.00036164,11]
[359568125,1746126662406,-450.0,0.00036164,11]
[359568126,1746126662415,-647.87,0.00036164,11]
[359568127,1746126662426,-450.0,0.00036164,7]
[359568128,1746126662435,-580.79,0.00036164,11]
[359568129,1746126662444,-450.0,0.00036164,11]
[359568130,1746126662453,-450.0,0.00036164,11]
[359568131,1746126662463,-450.0,0.00036164,11]
[359568132,1746126662473,-478.20089372,0.00036164,11]
[359568133,1746126662482,-1283.55,0.00036164,11]
[359568134,1746126662492,-450.0,0.00036164,11]
[359568135,1746126662501,-450.0,0.00036164,11]
[359568136,1746126662511,-450.0,0.00036164,11]
[359568137,1746126662520,-462.39,0.00036164,11]
[359568138,1746126662529,-450.0,0.00036164,11]
[359568139,1746126662539,-450.0,0.00036164,11]
[359568140,1746126662548,-983.64,0.00036164,11]
[359568141,1746126662557,-536.34,0.00036164,11]
[359568142,1746126662568,-165.72697627,0.00036164,11]
[359568143,1746126662577,-1410.2,0.00036164,11]
[359568144,1746126662587,-177.46750058,0.00036164,11]
[359568145,1746126662598,-450.0,0.00036164,11]
[359568146,1746126662609,-760.41,0.00036164,11]
[359568147,1746126662619,-559.77,0.00036164,11]
[359568148,1746126662629,-450.0,0.00036164,11]
[359568149,1746126662639,-567.58,0.00036164,11]
[359568150,1746126662648,-504.28,0.00036164,2]
[359568151,1746126662658,-450.0,0.00036164,11]
[359568152,1746126662667,-724.03,0.00036164,11]
[359568153,1746126662677,-450.0,0.00036164,11]
[359568154,1746126662688,-809.59,0.00036164,11]
[359568155,1746126662699,-541.66603342,0.00036164,11]
[359568156,1746126662709,-450.0,0.00036164,11]
[359568157,1746126662720,-450.0,0.00036164,11]
[359568158,1746126662730,-456.52,0.00036164,11]
[359568159,1746126662739,-450.0,0.00036164,11]
[359568160,1746126662749,-450.0,0.00036164,2]
[359568161,1746126662759,-1015.74,0.00036164,11]
[359568162,1746126662768,-450.0,0.00036164,11]
[359568163,1746126662778,-450.0,0.00036164,11]
[359568164,1746126662787,-228.74813168,0.00036164,11]
[359568165,1746126662798,-2371.99,0.00036164,11]
[359568166,1746126662808,-1207.07,0.00036164,11]
[359568167,1746126662817,-450.0,0.00036164,11]
[359568168,1746126662827,-450.0,0.00036164,11]
[359568169,1746126662836,-450.0,0.00036164,11]
[359568170,1746126662846,-918.32,0.00036164,11]
[359568171,1746126662856,-273.57217748,0.00036164,11]
[359568172,1746126662865,-450.0,0.00036164,11]
[359568173,1746126662875,-450.0,0.00036164,11]
[359568174,1746126662884,-524.41,0.00036164,11]
[359568175,1746126662894,-605.3,0.00036164,11]
[359568176,1746126662904,-450.0,0.00036164,11]
[359568177,1746126662913,-1115.85,0.00036164,11]
[359568178,1746126662923,-450.0,0.00036164,11]
[359568179,1746126662933,-1122.77,0.00036164,11]
[359568180,1746126662942,-529.69,0.00036164,11]
[359568181,1746126662952,-450.0,0.00036164,11]
[359568182,1746126662962,-450.0,0.00036164,11]
[359568183,1746126662972,-870.43,0.00036164,11]
[359568184,1746126662982,-450.0,0.00036164,11]
[359568185,1746126662991,-450.0,0.00036164,11]
[359568186,1746126663000,-450.0,0.00036164,11]
[359568187,1746126663013,-517.93,0.00036164,11]
[359568188,1746126663023,-290.41,0.00036164,11]
[359568189,1746126663033,-450.0,0.00036164,11]
[359568190,1746126663042,-450.0,0.00036164,11]
[359568191,1746126663054,-572.63,0.00036164,11]
[359568192,1746126663063,-544.49,0.00036164,11]
[359568193,1746126663072,-1031.43,0.00036164,11]
[359568194,1746126663082,-564.93,0.00036164,11]
[359568195,1746126663092,-450.0,0.00036164,11]
[359568196,1746126663103,-450.0,0.00036164,11]
[359568197,1746126663112,-450.0,0.00036164,11]
[359568198,1746126663122,-477.16,0.00036164,11]
[359568199,1746126663132,-1157.31,0.00036164,11]
[359568200,1746126663142,-450.0,0.00036164,11]
[359568201,1746126663153,-663.035541,0.00036164,7]
[359568202,1746126663163,-453.88,0.00036164,11]
[359568203,1746126663173,-784.52,0.00036164,11]
[359568204,1746126663183,-450.0,0.00036164,11]
[359568205,1746126663193,-450.0,0.00036164,11]
[359568206,1746126663203,-663.035541,0.00036164,7]
[359568207,1746126663212,-450.0,0.00036164,11]
[359568208,1746126663222,-450.0,0.00036164,11]
[359568209,1746126663233,-2045.26,0.00036164,11]
[359568210,1746126663242,-1006.71,0.00036164,120]
[359568211,1746126663254,-450.0,0.00036164,11]
[359568212,1746126663264,-450.0,0.00036164,11]
[359568213,1746126663274,-1028.02,0.00036164,11]
[359568214,1746126663285,-450.0,0.00036164,11]
[359568215,1746126663294,-450.0,0.00036164,11]
[359568216,1746126663305,-816.47,0.00036164,11]
[359568217,1746126663315,-1669.19,0.00036164,11]
[359568218,1746126663325,-450.0,0.00036164,11]
[359568219,1746126663335,-752.34,0.00036164,11]
[359568220,1746126663346,-450.0,0.00036164,11]
[359568221,1746126663356,-450.0,0.00036164,11]
[359568222,1746126663366,-645.91,0.00036164,11]
[359568223,1746126663376,-450.0,0.00036164,11]
[359568224,1746126663386,-523.77,0.00036164,11]
[359568225,1746126663395,-611.54,0.00036164,11]
[359568226,1746126663405,-1165.04,0.00036164,11]
[359568227,1746126663415,-450.0,0.00036164,11]
[359568228,1746126663425,-450.0,0.00036164,11]
[359568229,1746126663434,-450.0,0.00036164,11]
[359568230,1746126663444,-450.0,0.00036164,7]
[359568231,1746126663454,-450.0,0.00036164,11]
[359568232,1746126663464,-889.67,0.00036164,11]
[359568233,1746126663474,-450.0,0.00036164,11]
[359568234,1746126663692,-450.0,0.00036164,11]
[359568235,1746126663704,-450.0,0.00036164,11]
[359568236,1746126663715,-450.0,0.00036164,11]
[359568237,1746126663726,-970.07,0.00036164,11]
[359568238,1746126663736,-648.06,0.00036164,11]
[359568239,1746126663746,-450.0,0.00036164,11]
[359568240,1746126663756,-450.0,0.00036164,11]
[359568241,1746126663766,-450.0,0.00036164,11]
[359568242,1746126663776,-1220.0,0.00036164,11]
[359568243,1746126663786,-450.0,0.00036164,11]
[359568244,1746126663795,-450.0,0.00036164,11]
[359568245,1746126663806,-450.0,0.00036164,11]
[359568246,1746126663815,-450.0,0.00036164,11]
[359568247,1746126663826,-485.17149657,0.00036164,11]
[359568248,1746126664279,-596.46850343,0.00036164,11]
[359568249,1746126664288,-1110.43,0.00036164,11]
[359568250,1746126664298,-225.10149657,0.00036164,11]
[359568251,1746126664349,-450.0,0.00035616,11]
[359568252,1746126664359,-339.21850343,0.00036164,11]
[359568253,1746126664369,-512.11,0.00036164,11]
[359568254,1746126664379,-450.0,0.00036164,11]
[359568255,1746126664389,-334.1155451,0.00036164,11]
[359568256,1746126795073,1053.0,0.00030137,120]
[359568258,1746126881542,567.66331254,0.00022,120]
[359568259,1746126972776,250.0,0.00017,2]
[359568260,1746126973913,300.0,0.00019,2]
[359568262,1746127001553,1187.802459,0.00032876,60]
[359568263,1746127052966,-350.0,0.00021,2]
[359568294,1746127508076,3100.0,0.0002,2]
[359568295,1746127508108,1450.0,0.0002,2]
[359568296,1746127508133,2000.0,0.0002,2]
[359568297,1746127508157,2000.0,0.0002,2]
[359568298,1746127508181,2000.0,0.0002,2]
[359568299,1746127508212,2000.0,0.0002,2]
[359568300,1746127508235,2000.0,0.0002,2]
[359568301,1746127508261,2000.0,0.0002,2]
[359568302,1746127508283,2000.0,0.0002,2]
[359568303,1746127508307,2000.0,0.0002,2]
[359568304,1746127508329,2000.0,0.0002,2]
[359568305,1746127508356,2000.0,0.0002,2]
[359568306,1746127508379,2000.0,0.0002,2]
[359568307,1746127508403,2000.0,0.0002,2]
[359568308,1746127508430,2000.0,0.0002,2]
[359568309,1746127508464,2000.0,0.0002,2]
[359568310,1746127508489,2000.0,0.0002,2]
[359568344,1746127628331,1239.0445,0.000153,2]
[359568347,1746127635364,2059.41834549,0.00015,2]
[359568357,1746127677183,877.14675173,0.0001,2]
[359568396,1746127833019,-567.02785561,0.00019899,2]
[359568397,1746127833031,-632.97214439,0.00019899,2]
[359568398,1746127833041,-786.4462604,0.00019899,2]
[359568399,1746127833052,-63.5537396,0.00019899,2]
[359568400,1746127833063,-300.0,0.00019899,2]
[359568401,1746127833073,-300.0,0.00019899,2]
[359568402,1746127833083,-151.31467587,0.000199,2]
[359568403,1746127833092,-81.27759898,0.000199,2]
[359568404,1746127833174,-10491.2953151,0.000199,2]
[359568405,1746127833185,-398.05286501,0.000199,2]
[359568406,1746127833197,-513.74121267,0.000199,2]
[359568407,1746127833267,-5043.40180296,0.000199,2]
[359568408,1746127833279,-365.60000001,0.000199,2]
[359568409,1746127833299,-5933.588277,0.000199,2]
[359568410,1746127833310,-1047.85311258,0.000199,2]
[359568411,1746127833334,-4586.06303229,0.000199,2]
[359568569,1746127840554,-330.12269716,0.00019899,2]
[359568571,1746127840564,-22.93825279,0.000199,2]
[359568669,1746127846325,-369.93660422,0.000199,2]
[359568673,1746127966508,230.57146113,0.0001931,2]
[359568676,1746128153501,-166.78,0.00019333,2]
[359568679,1746128230690,158.04,0.00027425,30]
[359568696,1746128782228,250.0,0.00017,2]
[359568697,1746128783084,192.17924502,0.00019,2]
[359568698,1746128783106,107.82075498,0.00019,2]
[359568713,1746129031521,-322.56838288,0.00019799,2]
[359568714,1746129031530,-200.0,0.0001985,2]
[359568715,1746129031540,-250.0,0.0001985,2]
[359568716,1746129031551,-500.0,0.00019898,2]
[359568717,1746129031562,-1200.0,0.00019898,2]
[359568718,1746129031571,-300.0,0.00019898,2]
[359568719,1746129031580,-300.0,0.00019898,2]
[359568720,1746129031590,-4544.34333486,0.00019899,2]
[359568721,1746129031601,-10680.67888542,0.00019899,2]
[359568722,1746129031633,-2783.80509327,0.00019899,2]
[359568723,1746129031644,-18059.3354817,0.00019899,2]
[359568724,1746129031655,-271.89861931,0.00019899,2]
[359568725,1746129031666,-287.09315266,0.00019899,2]
[359568726,1746129031690,-574.42573208,0.00019899,2]
[359568727,1746129031701,-3777.71549535,0.00019899,2]
[359568728,1746129031712,-757.14562935,0.00019899,2]
[359568729,1746129031724,-2967.66811576,0.00019899,2]
[359568730,1746129031736,-2553.33000917,0.00019899,2]
[359568731,1746129031748,-598.20233049,0.00019899,2]
[359568732,1746129031760,-2354.8,0.00019899,2]
[359568733,1746129031786,-2002.65164984,0.00019899,2]
[359568734,1746129031797,-1795.35305506,0.00019899,2]
[359568735,1746129031808,-1952.72595287,0.00019899,2]
[359568736,1746129031820,-2503.74235323,0.00019899,2]
[359568737,1746129031829,-443.977,0.00019899,2]
[359568738,1746129031840,-162.41291371,0.000199,2]
[359568739,1746129031850,-325.91494518,0.000199,2]
[359568740,1746129031860,-304.12141112,0.000199,2]
[359568741,1746129031870,-734.70109546,0.000199,2]
[359568742,1746129031881,-2339.677677,0.000199,2]
[359568934,1746129039820,-482.83635893,0.000199,2]
[359568950,1746129039979,-25940.70920759,0.000199,2]
[359568952,1746129039990,-674.42197431,0.000199,2]
[359568954,1746129040000,-447.65925179,0.000199,2]
[359568956,1746129040010,-200.0,0.00019912,2]
[359568958,1746129040020,-500.0,0.00019973,2]
[359568960,1746129040030,-500.90438284,0.00019973,2]
[359568961,1746129040039,-163.30322694,0.00019973,2]
[359568963,1746129040049,-500.0,0.00019973,2]
[359568965,1746129040060,-500.0,0.00019973,2]
[359568967,1746129040070,-500.0,0.00019973,2]
[359568969,1746129040080,-500.0,0.00019973,2]
[359568971,1746129040090,-3000.0,0.0001999,2]
[359568973,1746129040100,-294.4614036,0.0001999,2]
[359568975,1746129040110,-294.4614036,0.0001999,2]
[359568977,1746129040119,-294.4614036,0.0001999,2]
[359568979,1746129040129,-250.44,0.0001999,2]
[359568981,1746129040138,-535.1003832,0.00019999,2]
[359568983,1746129040151,-2021.4,0.00019999,2]
[359568986,1746129040161,-601.35853554,0.00019999,2]
[359568988,1746129040171,-187990.41760391,0.0002,2]
[359568990,1746129040183,-3319.6,0.0002,2]
[359568992,1746129040199,-19225.24767107,0.0002,2]
[359569021,1746129042602,-14351.0,0.0002,2]
[359569022,1746129042709,-192351.11929825,0.0002,2]
[359569023,1746129042869,-738.05,0.0002,2]
[359569024,1746129042923,-268.61,0.0002,2]
[359569053,1746129045612,-185.50146172,0.000199,2]
[359569055,1746129045622,-33151.54888824,0.0002,2]
[359569067,1746129046165,-266.95199862,0.0002,2]
[359569068,1746129046176,-500.0,0.0002,2]
[359569069,1746129046315,-6000.0,0.0002,2]
[359569237,1746129236263,50182.62076009,0.00019,2]
[359569241,1746129375483,158.04,0.00027425,30]
[359569245,1746129564427,166.78,0.00017899,2]
[359569251,1746129727744,1899.5,0.00032877,60]
[359569264,1746130231748,-303.33273231,0.000198,2]
[359569265,1746130231757,-300.0,0.00019899,2]
[359569266,1746130231767,-446.66726769,0.00019899,2]
[359569267,1746130231778,-753.33273231,0.00019899,2]
[359569268,1746130231789,-300.0,0.00019899,2]
[359569269,1746130231798,-303.81310664,0.000199,2]
[359569270,1746130231808,-220.89525201,0.000199,2]
[359569271,1746130231908,-359.06802566,0.000199,2]
[359569272,1746130231918,-4119.58634872,0.000199,2]
[359569273,1746130231961,-739.489561,0.000199,2]
[359569274,1746130231972,-21373.3997677,0.000199,2]
[359569275,1746130231982,-2965.01696119,0.000199,2]
[359569276,1746130231992,-449.61464954,0.000199,2]
[359569277,1746130232002,-2439.48566585,0.000199,2]
[359569278,1746130232012,-185.50146172,0.000199,2]
[359569280,1746130232021,-927.65778803,0.000199,2]
[359569282,1746130232032,-6000.0,0.000199,2]
[359569284,1746130232043,-13794.87929053,0.000199,2]
[359569286,1746130232053,-163.45501656,0.000199,2]
[359569288,1746130232063,-3653.99761737,0.000199,2]
[359569290,1746130232072,-179.51,0.00019963,2]
[359569292,1746130232082,-717.95,0.00019965,2]
[359569294,1746130232092,-154.5603084,0.00019973,2]
[359569296,1746130232101,-500.0,0.00019973,2]
[359569298,1746130232111,-500.0,0.00019973,2]
[359569299,1746130232121,-500.0,0.00019973,2]
[359569301,1746130232131,-500.0,0.00019973,2]
[359569303,1746130232141,-500.0,0.00019999,2]
[359569305,1746130232151,-500.0,0.00019999,2]
[359569307,1746130232162,-2000.0,0.00019999,2]
[359569309,1746130232172,-77350.2782673,0.0002,2]
[359569320,1746130237691,-515.55170183,0.0002,2]
[359569321,1746130237759,-500.0,0.0002,2]
[359569322,1746130237771,-1782.044,0.0002,2]
[359569323,1746130237855,-364.10047257,0.0002,2]
[359569324,1746130237867,-638.72194935,0.0002,2]
[359569325,1746130237879,-1235.54026957,0.0002,2]
[359569326,1746130237904,-4356737.7319381,0.0002,2]
[359569328,1746130237958,-2332.38630571,0.0002,2]
[359569497,1746130240091,-1497.7826597,0.0002,2]
[359569498,1746130240103,-38826.92964482,0.0002,2]
[359569508,1746130240570,-2587.64247345,0.0002,2]
[359569509,1746130240581,-4661.55675358,0.0002,2]
[359569515,1746130245686,-14466.75,0.0002,2]
[359569516,1746130245739,-6659.74105,0.0002,2]
[359569517,1746130245847,-1924.0,0.0002,2]
[359569518,1746130245859,-6912.36188908,0.0002,2]
[359569519,1746130245901,-4211.29840756,0.0002,2]
[359569520,1746130246024,-566.25024508,0.0002,2]
[359569528,1746130408009,168.03,0.00019178,2]
[359569530,1746130564730,-645.79228256,0.0001987,2]
[359569531,1746130564752,-250.0,0.000199,2]
[359569532,1746130564773,-200.0,0.000199,2]
[359569533,1746130564794,-200.0,0.000199,2]
[359569534,1746130564815,-756.37639498,0.000199,2]
[359569535,1746130565081,-163.3306827,0.000199,2]
[359569536,1746130565102,-1002.58266394,0.000199,2]
[359569537,1746130565123,-250.0,0.00019954,2]
[359569538,1746130565144,-1200.0,0.00019998,2]
[359569539,1746130565165,-300.0,0.00019998,2]
[359569540,1746130565186,-1098.32957861,0.00019999,2]
[359569541,1746130565215,-500.0,0.00019999,2]
[359569542,1746130565244,-500.0,0.00019999,2]
[359569543,1746130565275,-500.0,0.00019999,2]
[359569544,1746130565303,-500.0,0.00019999,2]
[359569545,1746130565330,-500.0,0.00019999,2]
[359569546,1746130565361,-368.06802032,0.00019999,2]
[359569547,1746130565389,-500.0,0.00019999,2]
[359569548,1746130565417,-500.0,0.00019999,2]
[359569549,1746130565445,-500.0,0.00019999,2]
[359569550,1746130565471,-500.0,0.00019999,2]
[359569551,1746130565497,-500.0,0.00019999,2]
[359569552,1746130565526,-500.0,0.00019999,2]
[359569553,1746130565554,-500.0,0.00019999,2]
[359569554,1746130565580,-500.0,0.00019999,2]
[359569555,1746130565607,-500.0,0.00019999,2]
[359569556,1746130565634,-500.0,0.00019999,2]
[359569557,1746130565662,-500.0,0.00019999,2]
[359569558,1746130565692,-500.0,0.00019999,2]
[359569559,1746130565719,-500.0,0.00019999,2]
[359569560,1746130565745,-500.0,0.00019999,2]
[359569561,1746130565773,-500.0,0.00019999,2]
[359569562,1746130565801,-500.0,0.00019999,2]
[359569563,1746130565827,-500.0,0.00019999,2]
[359569564,1746130565855,-500.0,0.00019999,2]
[359569565,1746130565881,-275.0,0.00019999,2]
[359569566,1746130565908,-500.0,0.00019999,2]
[359569567,1746130565936,-500.0,0.00019999,2]
[359569568,1746130565964,-500.0,0.00019999,2]
[359569569,1746130565992,-500.0,0.00019999,2]
[359569570,1746130566020,-500.0,0.00019999,2]
[359569571,1746130566048,-500.0,0.00019999,2]
[359569572,1746130566084,-688790.52037689,0.0002,2]
[359569574,1746130590782,250.0,0.00017,2]
[359569575,1746130591867,300.0,0.00019,2]
[359569576,1746130594815,158.04,0.00027425,30]
[359569577,1746130604034,-716000.0,0.0002,2]
[359569581,1746130770983,-300.0,0.00019599,2]
[359569582,1746130771008,-540.9,0.000196,2]
[359569583,1746130771031,-38340.9165074,0.000196,2]
[359569584,1746130771055,-1027.6762494,0.000199,2]
[359569585,1746130771078,-648.32262426,0.000199,2]
[359569586,1746130771100,-250.0,0.00019943,2]
[359569587,1746130771122,-14715.0504955,0.00019986,2]
[359569588,1746130771144,-1674.05515249,0.00019999,2]
[359569589,1746130771167,-420.95097488,0.00019999,2]
[359569590,1746130771641,-500.0,0.00019999,2]
[359569591,1746130771712,-500.0,0.00019999,2]
[359569592,1746130771739,-500.0,0.00019999,2]
[359569593,1746130771766,-564.30680203,0.00019999,2]
[359569594,1746130771789,-637017.82119404,0.0002,2]
[359569596,1746130834865,-1200.0,0.00019899,2]
[359569597,1746130834890,-300.0,0.00019899,2]
[359569598,1746130834911,-163.33068266,0.000199,2]
[359569599,1746130834933,-12479.983,0.000199,2]
[359569600,1746130834952,-344.3544,0.000199,2]
[359569601,1746130834980,-229.36742245,0.00019999,2]
[359569602,1746130835003,-233664.56753749,0.0002,2]